bitfinex-derivatives/quotes_BNBF0:USTF0_20251002
["timestamp","ask_amount","ask_price","bid_price","bid_amount"]
[1759433703534,0.5442067,1071.4,1068.0,2.07886106]
[1759433703738,0.5442067,1071.3,1068.0,2.07886106]
[1759433703938,0.5442067,1071.2,1068.0,2.07886106]
[1759433704136,0.5442067,1071.1,1068.0,2.07886106]
[1759433704340,0.5442067,1071.0,1067.6,2.07886106]
[1759433704540,0.5442067,1070.9,1067.6,2.07886106]
[1759433704736,0.82946651,1071.7,1067.5,2.07886106]
[1759433704941,1.37383884,1071.6,1067.5,2.07886106]
[1759433705135,0.54437233,1071.5,1067.5,2.07886106]
[1759433705336,0.54437233,1071.4,1067.5,2.07886106]
[1759433705538,0.54437233,1071.3,1067.5,2.07886106]
[1759433705738,0.54437233,1071.2,1068.2,2.07886106]
[1759433705937,0.54437233,1071.1,1068.2,2.07886106]
[1759433706137,0.82946651,1071.8,1068.2,2.07886106]
[1759433706338,0.54447814,1071.7,1068.2,2.07886106]
[1759433706642,0.54447814,1071.6,1068.2,2.07886106]
[1759433706842,0.54447814,1071.5,1068.2,2.07886106]
[1759433707144,0.54447814,1071.4,1068.2,2.07886106]
[1759433707342,0.54447814,1071.3,1068.2,2.07886106]
[1759433707538,0.54447814,1071.2,1068.3,2.07886106]
[1759433707743,0.82946651,1071.7,1068.3,2.07886106]
[1759433707941,1.37392102,1071.6,1068.6,2.07886106]
[1759433708146,0.54445451,1071.5,1068.6,2.07886106]
[1759433708442,0.54445451,1071.4,1068.5,2.07886106]
[1759433708744,0.54445451,1071.3,1068.5,2.07886106]
[1759433708941,0.54445451,1071.2,1068.5,2.07886106]
[1759433709141,0.82946651,1071.7,1068.5,2.07886106]
[1759433709344,0.54465645,1071.6,1068.5,2.07886106]
[1759433709543,0.54465645,1071.5,1068.2,2.91147655]
[1759433709744,0.54465645,1071.4,1068.2,2.91147655]
[1759433709944,0.54465645,1071.3,1068.0,2.07886106]
[1759433710145,0.54465645,1071.2,1068.0,2.07886106]
[1759433710443,0.54465645,1071.1,1068.6,2.07886106]
[1759433710647,0.82946651,1071.6,1068.6,2.07886106]
[1759433710946,0.54476704,1071.5,1068.6,2.07886106]
[1759433711148,0.54476704,1071.4,1068.6,2.07886106]
[1759433711446,0.54476704,1071.3,1068.6,2.07886106]
[1759433711643,0.54476704,1071.2,1068.7,2.07886106]
[1759433711947,0.54476704,1071.1,1068.7,2.07886106]
[1759433712243,0.82946651,1071.6,1068.6,2.07886106]
[1759433712446,0.54507598,1071.5,1068.6,2.07886106]
[1759433712643,0.54507598,1071.4,1068.7,2.07886106]
[1759433712846,0.54507598,1071.3,1068.7,2.07886106]
[1759433713047,0.54507598,1071.2,1068.7,2.07886106]
[1759433713343,0.54507598,1071.1,1068.7,2.07886106]
[1759433713546,0.82946651,1071.6,1068.7,2.07886106]
[1759433713745,0.54450084,1071.5,1068.7,2.07886106]
[1759433713947,0.54450084,1071.4,1068.7,2.07886106]
[1759433714144,0.54450084,1071.3,1068.7,2.07886106]
[1759433714344,0.54450084,1071.2,1068.7,2.07886106]
[1759433714547,0.54450084,1071.1,1068.7,2.07886106]
[1759433714748,0.82946651,1071.6,1068.7,2.07886106]
[1759433714949,0.5445741,1071.5,1068.7,2.07886106]
[1759433715147,0.5445741,1071.4,1068.7,2.07886106]
[1759433715353,0.5445741,1071.3,1068.7,2.07886106]
[1759433715551,0.5445741,1071.2,1068.7,2.07886106]
[1759433715845,0.5445741,1071.1,1068.7,2.07886106]
[1759433716048,0.82946651,1071.6,1068.7,2.07886106]
[1759433716252,0.54477303,1071.5,1068.7,2.07886106]
[1759433716450,0.54477303,1071.4,1068.7,2.07886106]
[1759433716751,0.54477303,1071.3,1068.7,2.07886106]
[1759433716948,0.54477303,1071.2,1068.7,2.07886106]
[1759433717148,0.54477303,1071.1,1068.7,2.07886106]
[1759433717349,0.82946651,1071.6,1068.7,2.07886106]
[1759433717548,0.54488219,1071.5,1068.7,2.07886106]
[1759433717751,0.54488219,1071.4,1068.7,2.07886106]
[1759433717949,0.54488219,1071.3,1068.7,2.07886106]
[1759433718148,0.54488219,1071.2,1068.7,2.07886106]
[1759433718352,0.54488219,1071.1,1068.7,2.07886106]
[1759433718647,0.82946651,1071.6,1068.7,2.07886106]
[1759433718852,0.54501805,1071.5,1068.7,2.07886106]
[1759433719052,0.54501805,1071.4,1068.7,2.07886106]
[1759433719350,0.54501805,1071.3,1068.7,2.07886106]
[1759433719556,0.54501805,1071.2,1068.7,2.07886106]
[1759433719752,0.54501805,1071.1,1068.7,2.07886106]
[1759433719952,0.82946651,1071.7,1068.6,2.07886106]
[1759433720150,0.545156,1071.6,1068.6,2.07886106]
[1759433720351,0.545156,1071.5,1068.7,2.07886106]
[1759433720549,0.545156,1071.4,1068.7,2.07886106]
[1759433720754,0.545156,1071.3,1068.7,2.07886106]
[1759433720955,0.545156,1071.2,1068.7,2.07886106]
[1759433721156,0.545156,1071.1,1068.7,2.07886106]
[1759433721353,0.82946651,1071.7,1068.7,2.07886106]
[1759433721554,0.54545351,1071.6,1068.7,2.07886106]
[1759433721752,0.54545351,1071.5,1068.7,2.07886106]
[1759433721957,0.54545351,1071.4,1068.6,2.07886106]
[1759433722156,0.54545351,1071.3,1068.6,2.07886106]
[1759433722355,0.54545351,1071.2,1068.6,2.07886106]
[1759433722554,0.54545351,1071.1,1068.6,2.07886106]
[1759433722756,0.82946651,1071.7,1068.6,2.07886106]
[1759433722960,0.54562007,1071.6,1068.6,2.07886106]
[1759433723161,0.54562007,1071.5,1068.6,2.07886106]
[1759433723459,0.54562007,1071.4,1068.6,2.07886106]
[1759433723660,0.54562007,1071.3,1068.6,2.07886106]
[1759433723960,0.54562007,1071.2,1068.7,2.07886106]
[1759433724257,0.54562007,1071.1,1068.7,2.07886106]
[1759433724559,0.82946651,1071.7,1068.8,2.07886106]
[1759433724756,0.54601958,1071.6,1068.8,2.07886106]
[1759433724958,0.54601958,1071.5,1068.8,2.07886106]
[1759433725157,0.54601958,1071.4,1068.8,2.07886106]
[1759433725355,0.54601958,1071.3,1068.8,2.07886106]
[1759433725560,0.82946651,1071.8,1069.2,2.07886106]
[1759433725760,0.54617685,1071.7,1069.2,2.07886106]
[1759433726058,0.54617685,1071.6,1069.2,2.07886106]
[1759433726262,0.54617685,1071.5,1069.2,2.07886106]
[1759433726556,0.54617685,1071.4,1069.3,2.07886106]
[1759433726759,0.54617685,1071.3,1069.3,2.07886106]
[1759433726960,0.82946651,1071.8,1069.3,2.07886106]
[1759433727161,0.54630301,1071.7,1069.4,2.07886106]
[1759433727360,0.54630301,1071.6,1069.4,2.07886106]
[1759433727558,0.54630301,1071.5,1069.4,2.07886106]
[1759433727764,0.54630301,1071.4,1069.4,2.07886106]
[1759433728059,0.82946651,1071.9,1069.4,2.07886106]
[1759433728264,0.54665314,1071.8,1069.4,2.07886106]
[1759433728462,0.54665314,1071.7,1069.4,2.07886106]
[1759433728663,0.54665314,1071.6,1069.4,2.07886106]
[1759433728860,0.54665314,1071.5,1069.4,2.07886106]
[1759433729059,0.54665314,1071.4,1069.4,2.07886106]
[1759433729364,0.82946651,1071.9,1069.4,2.07886106]
[1759433729562,0.54664432,1071.8,1069.4,2.07886106]
[1759433729861,0.54664432,1071.7,1069.4,2.07886106]
[1759433730161,0.54664432,1071.6,1069.4,2.07886106]
[1759433730359,0.54664432,1071.5,1069.4,2.07886106]
[1759433730562,0.54664432,1071.4,1069.4,2.07886106]
[1759433730761,0.82946651,1071.9,1069.3,2.07886106]
[1759433730964,0.54663462,1071.8,1069.3,2.07886106]
[1759433731166,0.54663462,1071.7,1069.3,2.07886106]
[1759433731362,0.54663462,1071.6,1069.4,2.07886106]
[1759433731560,0.54663462,1071.5,1069.4,2.07886106]
[1759433731764,0.54663462,1071.4,1069.4,2.07886106]
[1759433731963,0.82946651,1071.9,1069.4,2.07886106]
[1759433732163,0.54661793,1071.8,1069.4,2.07886106]
[1759433732366,0.54661793,1071.7,1069.4,2.07886106]
[1759433732562,0.54661793,1071.6,1069.4,2.07886106]
[1759433732762,0.54661793,1071.5,1069.4,2.07886106]
[1759433732966,0.54661793,1071.4,1069.4,2.07886106]
[1759433733266,0.82946651,1071.9,1069.4,2.07886106]
[1759433733565,0.54650554,1071.8,1069.4,2.07886106]
[1759433733762,0.54650554,1071.7,1069.2,2.07886106]
[1759433733961,0.54650554,1071.6,1069.2,2.07886106]
[1759433734163,0.54650554,1071.5,1069.2,2.07886106]
[1759433734362,0.54650554,1071.4,1069.2,2.07886106]
[1759433734567,0.82946651,1072.0,1069.2,2.07886106]
[1759433734866,0.54646597,1071.9,1069.1,2.07886106]
[1759433735070,0.54646597,1071.8,1069.1,2.07886106]
[1759433735369,0.54646597,1071.7,1069.1,2.07886106]
[1759433735570,0.54646597,1071.6,1069.1,2.07886106]
[1759433735770,0.54646597,1071.5,1069.1,2.07886106]
[1759433736069,0.82946651,1072.1,1069.2,2.07886106]
[1759433736270,0.5464589,1072.0,1069.2,2.07886106]
[1759433736470,0.5464589,1071.9,1069.2,2.07886106]
[1759433736670,0.5464589,1071.8,1069.2,2.07886106]
[1759433736967,0.5464589,1071.7,1069.2,2.07886106]
[1759433737166,0.5464589,1071.6,1069.2,2.07886106]
[1759433737469,0.5464589,1071.5,1069.1,2.07886106]
[1759433737666,0.82946651,1072.1,1069.1,2.07886106]
[1759433737866,0.5463693,1072.0,1069.1,2.07886106]
[1759433738167,0.5463693,1071.9,1069.1,2.07886106]
[1759433738367,0.5463693,1071.8,1069.1,2.07886106]
[1759433738566,0.5463693,1071.7,1069.2,2.07886106]
[1759433738769,0.5463693,1071.6,1069.2,2.07886106]
[1759433738971,0.5463693,1071.5,1069.2,2.07886106]
[1759433739171,0.82946651,1072.1,1069.2,2.07886106]
[1759433739472,1.3758724,1072.0,1069.2,2.07886106]
[1759433739668,0.54640589,1071.9,1069.2,2.07886106]
[1759433739867,0.54640589,1071.8,1069.2,2.07886106]
[1759433740070,0.54640589,1071.7,1069.2,2.07886106]
[1759433740367,0.54640589,1071.6,1069.2,2.07886106]
[1759433740567,0.54640589,1071.5,1069.2,2.07886106]
[1759433740766,0.82946651,1072.0,1069.2,2.07886106]
[1759433740767,0.54640589,1071.4,1069.2,2.07886106]
[1759433740965,0.82946651,1071.9,1069.1,2.07886106]
[1759433741168,0.54641761,1071.8,1069.1,2.07886106]
[1759433741367,0.54641761,1071.7,1069.1,2.07886106]
[1759433741568,0.54641761,1071.6,1069.1,2.07886106]
[1759433741870,0.54641761,1071.5,1069.1,2.07886106]
[1759433742070,0.54641761,1071.4,1069.1,2.07886106]
[1759433742269,0.54641761,1071.3,1069.1,2.07886106]
[1759433742467,0.82946651,1071.9,1069.2,2.07886106]
[1759433742666,0.54654131,1071.8,1069.2,2.07886106]
[1759433742870,0.54654131,1071.7,1068.8,2.07886106]
[1759433743166,0.54654131,1071.6,1068.8,2.07886106]
[1759433743372,0.54654131,1071.5,1068.8,2.07886106]
[1759433743572,0.54654131,1071.4,1068.8,2.07886106]
[1759433743772,0.54654131,1071.3,1068.7,2.07886106]
[1759433744173,0.82946651,1071.8,1068.7,2.07886106]
[1759433744670,1.24419976,1072.0,1068.7,2.07886106]
[1759433745071,0.54611266,1071.9,1068.7,2.07886106]
[1759433745269,0.83536359,1071.7,1068.7,2.07886106]
[1759433746170,0.16243958,1072.7,1068.7,2.07886106]
[1759433746471,0.83537402,1071.8,1068.7,2.07886106]
[1759433746675,1.3814935,1071.7,1068.7,2.07886106]
[1759433746873,0.54611948,1071.6,1068.7,2.07886106]
[1759433747170,0.54611948,1071.6,1068.2,2.91147655]
[1759433747171,0.54611948,1071.5,1068.2,2.91147655]
[1759433747371,0.54611948,1071.4,1068.2,2.91147655]
[1759433747570,0.54611948,1071.3,1068.2,2.91147655]
[1759433747872,0.54611948,1071.2,1068.1,2.24136436]
[1759433748073,0.54611948,1071.1,1068.2,2.07886106]
[1759433748274,0.54611948,1071.0,1068.2,2.07886106]
[1759433748574,0.54611948,1070.9,1068.8,2.07886106]
[1759433748774,0.83537402,1071.5,1068.8,2.07886106]
[1759433748974,0.54626122,1071.4,1068.9,2.07886106]
[1759433749171,0.54626122,1071.3,1068.9,2.07886106]
[1759433749376,0.54626122,1071.2,1068.9,2.07886106]
[1759433749676,0.54626122,1071.1,1068.9,2.07886106]
[1759433749876,0.54626122,1071.0,1068.9,2.07886106]
[1759433750077,0.54626122,1070.9,1068.9,2.07886106]
[1759433750277,0.83537402,1071.5,1068.9,2.07886106]
[1759433750478,0.83537402,1071.3,1068.7,2.07886106]
[1759433750677,0.54635003,1071.2,1068.7,2.07886106]
[1759433750978,0.54635003,1071.1,1068.8,2.07886106]
[1759433751178,0.54635003,1071.0,1068.8,2.07886106]
[1759433751378,0.54635003,1070.9,1068.8,2.07886106]
[1759433751576,0.54635003,1070.8,1068.6,2.07886106]
[1759433751774,0.54635003,1070.7,1068.6,2.07886106]
[1759433751976,0.83537402,1071.2,1068.6,2.07886106]
[1759433752178,0.54629968,1071.1,1068.6,2.07886106]
[1759433752376,0.54629968,1071.0,1068.6,2.07886106]
[1759433752579,0.54629968,1070.9,1068.6,2.07886106]
[1759433752876,0.54629968,1070.8,1068.6,2.07886106]
[1759433753077,0.54629968,1070.7,1068.6,2.07886106]
[1759433753277,0.83537402,1071.2,1068.6,2.07886106]
[1759433753478,0.54607733,1071.1,1068.6,2.07886106]
[1759433753678,0.54607733,1071.0,1068.6,2.07886106]
[1759433753975,0.54607733,1070.9,1068.6,2.07886106]
[1759433754177,0.54607733,1070.8,1068.6,2.07886106]
[1759433754379,0.54607733,1070.7,1068.6,2.07886106]
[1759433754679,0.83537402,1071.2,1068.5,2.07886106]
[1759433754879,0.54597476,1071.1,1068.5,2.07886106]
[1759433755175,0.54597476,1071.0,1068.6,2.07886106]
[1759433755379,0.54597476,1070.9,1068.6,2.07886106]
[1759433755675,0.54597476,1070.8,1068.5,2.07886106]
[1759433755975,0.54597476,1070.7,1068.5,2.07886106]
[1759433756179,0.54597476,1070.6,1068.4,2.07886106]
[1759433756379,0.54597476,1070.5,1068.4,2.07886106]
[1759433756679,0.83537402,1071.0,1068.3,2.07886106]
[1759433756879,1.25306103,1071.2,1068.3,2.07886106]
[1759433756880,0.54571548,1070.9,1068.3,2.07886106]
[1759433757174,0.54571548,1070.8,1068.3,2.07886106]
[1759433757378,0.54571548,1070.7,1068.3,2.07886106]
[1759433757576,0.54571548,1070.6,1068.3,2.07886106]
[1759433757876,0.54571548,1070.5,1068.1,2.24136436]
[1759433758076,0.83537402,1071.1,1068.1,2.24136436]
[1759433758275,0.54553338,1071.0,1068.1,2.24136436]
[1759433758476,0.54553338,1070.9,1068.1,2.24136436]
[1759433758679,0.54553338,1070.8,1068.1,2.24136436]
[1759433758880,0.54553338,1070.7,1068.1,2.24136436]
[1759433759080,0.54553338,1070.6,1068.1,2.24136436]
[1759433759279,0.54553338,1070.5,1068.1,2.24136436]
[1759433759481,0.83537402,1071.1,1068.1,2.24136436]
[1759433759780,0.54513028,1071.0,1068.1,2.24136436]
[1759433759981,0.54513028,1070.9,1068.1,2.24136436]
[1759433760179,0.54513028,1070.8,1068.1,2.24136436]
[1759433760383,0.54513028,1070.7,1068.1,0.1625033]
[1759433760579,0.54513028,1070.6,1068.1,0.1625033]
[1759433760781,0.83537402,1071.0,1068.1,0.1625033]
[1759433760782,0.54513028,1070.5,1068.1,0.1625033]
[1759433760980,0.54513028,1070.4,1068.1,0.1625033]
[1759433761180,0.83537402,1070.9,1068.1,0.1625033]
[1759433761384,0.54513204,1070.8,1068.1,0.1625033]
[1759433761683,0.54513204,1070.7,1068.1,0.1625033]
[1759433761880,0.54513204,1070.6,1068.1,2.24136436]
[1759433762080,0.83537402,1070.9,1068.1,2.24136436]
[1759433762081,0.54513204,1070.5,1068.1,2.24136436]
[1759433762279,0.54513204,1070.4,1068.1,2.24136436]
[1759433762485,0.83537402,1070.9,1068.1,2.24136436]
[1759433762781,0.54472275,1070.8,1068.1,2.24136436]
[1759433762982,0.54472275,1070.7,1068.1,2.24136436]
[1759433763181,0.54472275,1070.6,1068.1,2.24136436]
[1759433763382,0.54472275,1070.5,1068.1,2.24136436]
[1759433763585,0.54472275,1070.4,1068.1,2.24136436]
[1759433763782,0.54456924,1070.3,1068.1,2.24136436]
[1759433763985,0.83537402,1071.0,1068.1,0.1625033]
[1759433764182,0.54456924,1070.9,1068.1,0.1625033]
[1759433764387,0.54456924,1070.8,1068.1,0.1625033]
[1759433764586,0.54456924,1070.7,1068.1,0.1625033]
[1759433764782,0.54456924,1070.6,1068.1,0.1625033]
[1759433765086,0.54456924,1070.5,1068.1,0.1625033]
[1759433765282,0.83537402,1071.4,1068.1,0.1625033]
[1759433765582,0.83537402,1071.2,1068.1,0.1625033]
[1759433765785,0.54400344,1071.1,1068.1,0.1625033]
[1759433766082,0.54400344,1071.0,1068.1,0.1625033]
[1759433766285,0.54400344,1070.9,1068.1,0.1625033]
[1759433766483,0.54400344,1070.8,1068.1,0.1625033]
[1759433766686,0.54400344,1070.7,1068.1,0.1625033]
[1759433766982,0.54400344,1070.6,1068.1,0.1625033]
[1759433767184,0.83537402,1071.2,1068.1,0.1625033]
[1759433767383,0.54392644,1071.1,1068.1,0.1625033]
[1759433767583,0.54392644,1071.0,1068.2,2.07886106]
[1759433767787,0.54392644,1070.9,1068.2,2.07886106]
[1759433767987,0.54392644,1070.8,1068.2,2.07886106]
[1759433768184,0.54392644,1070.7,1068.2,2.07886106]
[1759433768484,0.54392644,1070.6,1068.2,2.07886106]
[1759433768687,0.83537402,1071.1,1068.2,2.07886106]
[1759433768986,0.54383212,1071.0,1068.2,2.07886106]
[1759433769183,0.54383212,1070.9,1068.1,0.1625033]
[1759433769383,1.25306103,1071.4,1068.1,0.1625033]
[1759433769384,0.54383212,1070.8,1068.1,0.1625033]
[1759433769585,0.54372476,1070.7,1068.1,0.1625033]
[1759433769789,0.83537402,1071.4,1068.1,0.1625033]
[1759433769985,0.54373091,1071.3,1068.1,0.1625033]
[1759433770285,0.54373091,1071.2,1068.1,0.1625033]
[1759433770495,0.54373091,1071.1,1068.1,0.1625033]
[1759433770694,0.54373091,1071.0,1068.1,0.1625033]
[1759433770894,0.54373091,1070.9,1068.1,0.1625033]
[1759433771096,0.54373091,1070.8,1068.1,0.1625033]
[1759433771297,0.54373091,1070.7,1068.1,0.1625033]
[1759433771493,0.83537402,1071.4,1068.1,0.1625033]
[1759433771795,0.5436799,1071.3,1068.1,0.1625033]
[1759433771992,0.5436799,1071.2,1068.1,0.1625033]
[1759433772192,0.5436799,1071.1,1068.1,0.1625033]
[1759433772493,0.5436799,1071.0,1068.1,0.1625033]
[1759433772796,0.5436799,1070.9,1068.1,0.1625033]
[1759433772994,0.5436799,1070.8,1068.1,0.1625033]
[1759433773198,0.5436799,1070.7,1068.1,0.1625033]
[1759433773398,0.83537402,1071.5,1068.1,0.1625033]
[1759433773596,0.5436599,1071.4,1068.1,0.1625033]
[1759433773797,0.5436599,1071.3,1068.1,0.1625033]
[1759433773997,0.83537402,1071.1,1068.1,0.1625033]
[1759433774198,0.5436599,1071.0,1068.1,0.1625033]
[1759433774402,0.5436599,1070.9,1068.1,0.1625033]
[1759433774601,0.5436599,1070.8,1068.1,0.1625033]
[1759433774803,0.5436599,1070.7,1068.1,0.1625033]
[1759433775004,0.5436599,1070.6,1068.1,0.1625033]
[1759433775203,0.5436599,1070.5,1068.1,0.1625033]
[1759433775404,0.83537402,1071.1,1068.1,0.1625033]
[1759433775703,0.54330709,1071.0,1068.1,0.1625033]
[1759433775903,0.54330709,1070.9,1068.1,0.1625033]
[1759433776203,0.54330709,1070.8,1068.1,0.1625033]
[1759433776400,0.54330709,1070.7,1068.1,0.1625033]
[1759433776604,0.54330709,1070.6,1068.1,0.1625033]
[1759433776804,0.54330709,1070.5,1068.1,0.1625033]
[1759433777003,0.83537402,1071.1,1068.1,0.1625033]
[1759433777203,0.54325014,1071.0,1068.1,0.1625033]
[1759433777403,0.54325014,1070.9,1068.1,0.1625033]
[1759433777706,0.54325014,1070.8,1068.1,0.1625033]
[1759433777903,0.54325014,1070.7,1068.1,0.1625033]
[1759433778107,0.54325014,1070.6,1068.1,0.1625033]
[1759433778303,0.54325014,1070.5,1068.1,0.1625033]
[1759433778604,0.54325014,1070.4,1068.1,0.1625033]
[1759433778804,0.83537402,1071.1,1068.1,0.1625033]
[1759433779004,0.54319169,1071.0,1068.1,0.1625033]
[1759433779304,0.54319169,1070.9,1068.1,0.1625033]
[1759433779503,0.54319169,1070.8,1068.1,0.1625033]
[1759433779708,0.54319169,1070.7,1068.1,0.1625033]
[1759433780004,0.54319169,1070.6,1068.1,0.1625033]
[1759433780204,0.54319169,1070.5,1068.1,0.1625033]
[1759433780505,0.54319169,1070.4,1068.1,0.1625033]
[1759433780709,0.54319169,1070.3,1068.1,0.1625033]
[1759433780909,0.83537402,1071.0,1068.1,0.1625033]
[1759433781110,0.5430344,1070.9,1068.1,0.1625033]
[1759433781410,0.5430344,1070.8,1068.1,0.1625033]
[1759433781710,0.5430344,1070.7,1068.1,0.1625033]
[1759433781906,0.5430344,1070.6,1068.1,0.1625033]
[1759433782208,0.5430344,1070.5,1068.1,0.1625033]
[1759433782406,0.5430344,1070.4,1068.1,0.1625033]
[1759433782611,0.5430344,1070.3,1068.1,0.1625033]
[1759433782812,0.83537402,1071.3,1068.1,0.1625033]
[1759433783010,1.37818804,1071.2,1068.1,0.1625033]
[1759433783312,0.83537402,1071.0,1068.1,0.1625033]
[1759433783512,0.54281402,1070.9,1068.1,0.1625033]
[1759433783712,0.54281402,1070.8,1068.1,0.1625033]
[1759433783912,0.54281402,1070.7,1068.1,0.1625033]
[1759433784214,0.54281402,1070.6,1068.1,0.1625033]
[1759433784408,0.54281402,1070.5,1068.1,0.1625033]
[1759433784614,0.54281402,1070.4,1068.1,0.1625033]
[1759433784810,0.54281402,1070.3,1068.1,0.1625033]
[1759433785008,0.83537402,1070.9,1068.1,0.1625033]
[1759433785213,0.54263132,1070.8,1068.1,0.1625033]
[1759433785414,0.54263132,1070.7,1068.1,0.1625033]
[1759433785609,0.54263132,1070.6,1068.1,0.1625033]
[1759433785913,0.54263132,1070.5,1068.1,0.1625033]
[1759433786113,0.54263132,1070.4,1068.1,0.1625033]
[1759433786310,0.54263132,1070.3,1068.1,0.1625033]
[1759433786512,0.54263132,1070.2,1068.1,0.1625033]
[1759433786813,0.83537402,1071.1,1068.1,0.1625033]
[1759433787014,1.37787177,1071.0,1068.1,0.1625033]
[1759433787212,1.37787177,1070.9,1068.1,0.1625033]
[1759433787412,0.54249775,1070.8,1068.1,0.1625033]
[1759433787612,0.54249775,1070.7,1068.1,0.1625033]
[1759433787813,0.54249775,1070.6,1068.1,0.1625033]
[1759433788011,0.54249775,1070.5,1068.1,0.1625033]
[1759433788213,0.54249775,1070.4,1068.1,0.1625033]
[1759433788417,0.54249775,1070.3,1068.1,0.1625033]
[1759433788717,0.83537402,1070.8,1068.1,0.1625033]
[1759433788918,0.54254056,1070.7,1068.1,0.1625033]
[1759433789217,0.54254056,1070.6,1068.1,0.1625033]
[1759433789415,0.54254056,1070.5,1068.1,0.1625033]
[1759433789615,0.54254056,1070.4,1068.1,0.1625033]
[1759433789816,0.54254056,1070.3,1068.1,0.1625033]
[1759433790016,0.83537402,1070.8,1068.1,0.1625033]
[1759433790217,0.54260697,1070.7,1068.1,0.1625033]
[1759433790416,0.54260697,1070.6,1068.1,0.1625033]
[1759433790719,0.54260697,1070.5,1068.1,0.1625033]
[1759433790917,0.54260697,1070.4,1068.1,0.1625033]
[1759433791116,0.54260697,1070.3,1068.1,0.1625033]
[1759433791316,0.83537402,1070.8,1068.1,0.1625033]
[1759433791521,0.54280225,1070.7,1068.1,0.1625033]
[1759433791820,0.54280225,1070.6,1068.1,0.1625033]
[1759433792018,0.54280225,1070.5,1068.1,0.1625033]
[1759433792221,0.54280225,1070.4,1068.1,0.1625033]
[1759433792422,0.54280225,1070.3,1068.1,0.1625033]
[1759433792622,0.83537402,1070.8,1068.1,0.1625033]
[1759433792822,0.54292322,1070.7,1068.1,0.1625033]
[1759433793020,0.54292322,1070.6,1068.1,0.1625033]
[1759433793321,0.54292322,1070.5,1068.1,0.1625033]
[1759433793518,0.54292322,1070.4,1068.1,0.1625033]
[1759433793723,0.54292322,1070.3,1068.1,0.1625033]
[1759433793923,0.83537402,1070.8,1068.1,0.1625033]
[1759433794120,0.54306355,1070.7,1068.1,0.1625033]
[1759433794323,0.54306355,1070.6,1068.1,0.1625033]
[1759433794524,0.54306355,1070.5,1068.1,0.1625033]
[1759433794723,0.54306355,1070.4,1068.1,0.1625033]
[1759433794925,0.54306355,1070.3,1068.1,0.1625033]
[1759433795125,0.83537402,1070.8,1068.1,0.1625033]
[1759433795420,0.54323174,1070.7,1068.1,0.1625033]
[1759433795624,0.54323174,1070.6,1068.1,0.1625033]
[1759433795822,0.54323174,1070.5,1068.1,0.1625033]
[1759433796022,0.54323174,1070.4,1068.1,0.1625033]
[1759433796222,0.54323174,1070.3,1068.1,0.1625033]
[1759433796421,0.54366368,1070.2,1068.1,0.1625033]
[1759433796721,0.83537402,1070.8,1068.1,0.1625033]
[1759433796925,0.54365995,1070.7,1068.1,0.1625033]
[1759433797122,0.54365995,1070.6,1068.1,0.1625033]
[1759433797327,0.54365995,1070.5,1068.1,0.1625033]
[1759433797527,0.54365995,1070.4,1068.1,0.1625033]
[1759433797726,0.54365995,1070.3,1068.1,0.1625033]
[1759433797922,0.54365995,1070.2,1068.1,0.1625033]
[1759433798127,0.54365995,1070.1,1068.1,0.1625033]
[1759433798329,0.83537402,1070.7,1068.1,0.1625033]
[1759433798527,0.5441638,1070.6,1068.1,0.1625033]
[1759433798724,0.5441638,1070.5,1068.1,0.1625033]
[1759433798928,0.5441638,1070.4,1068.1,0.1625033]
[1759433799125,0.5441638,1070.3,1068.1,0.1625033]
[1759433799329,0.5441638,1070.2,1068.1,0.1625033]
[1759433799624,0.5441638,1070.1,1068.1,0.1625033]
[1759433799829,0.83537402,1070.7,1068.1,0.1625033]
[1759433800124,0.54442529,1070.6,1068.1,0.1625033]
[1759433800328,0.54442529,1070.5,1068.1,0.1625033]
[1759433800529,0.54442529,1070.4,1068.1,0.1625033]
[1759433800829,0.54442529,1070.3,1068.1,0.1625033]
[1759433801030,0.54442529,1070.2,1068.1,0.1625033]
[1759433801230,0.54442529,1070.1,1068.1,0.1625033]
[1759433801427,0.83537402,1070.8,1068.1,0.1625033]
[1759433801630,0.54493292,1070.7,1068.1,0.1625033]
[1759433801832,0.54493292,1070.6,1068.1,0.1625033]
[1759433802031,0.54493292,1070.5,1068.1,0.1625033]
[1759433802228,0.54493292,1070.4,1068.1,0.1625033]
[1759433802528,0.54493292,1070.3,1068.1,0.1625033]
[1759433802832,0.54493292,1070.2,1068.1,0.1625033]
[1759433803032,0.54493292,1070.1,1068.1,0.1625033]
[1759433803327,0.83537402,1070.8,1068.1,0.1625033]
[1759433803528,0.54536401,1070.7,1068.1,0.1625033]
[1759433803732,0.54536401,1070.6,1068.1,0.1625033]
[1759433803926,0.83537402,1070.8,1068.1,0.1625033]
[1759433803927,0.54536401,1070.5,1068.1,0.1625033]
[1759433804128,0.54536401,1070.4,1068.1,0.1625033]
[1759433804432,0.54559382,1070.3,1068.1,0.1625033]
[1759433804630,0.54559382,1070.2,1068.1,0.1625033]
[1759433804830,0.54559382,1070.1,1068.1,0.1625033]
[1759433805030,0.83537402,1070.8,1068.1,0.1625033]
[1759433805333,0.54558913,1070.7,1068.1,0.1625033]
[1759433805630,0.54558913,1070.6,1068.1,0.1625033]
[1759433805829,0.83537402,1070.8,1068.1,0.1625033]
[1759433805830,0.54558913,1070.5,1068.1,0.1625033]
[1759433806030,0.54558913,1070.4,1068.1,0.1625033]
[1759433806232,0.54558913,1070.3,1068.1,0.1625033]
[1759433806532,0.54558913,1070.2,1068.1,0.1625033]
[1759433806732,0.54558913,1070.1,1068.1,0.1625033]
[1759433806932,0.54558913,1070.0,1068.1,0.1625033]
[1759433807130,0.54558913,1069.9,1068.1,0.1625033]
[1759433807331,0.83537402,1070.8,1068.1,0.1625033]
[1759433807530,0.54576955,1070.7,1068.1,0.1625033]
[1759433807733,0.54576955,1070.6,1068.1,0.1625033]
[1759433807931,0.54576955,1070.5,1068.1,0.1625033]
[1759433808234,0.54576955,1070.4,1068.1,0.1625033]
[1759433808434,0.83537402,1070.7,1068.1,0.1625033]
[1759433808435,0.54576955,1070.3,1068.1,0.1625033]
[1759433808631,0.54576955,1070.2,1068.1,0.1625033]
[1759433808835,0.54576955,1070.1,1068.1,0.1625033]
[1759433809033,0.54576955,1070.0,1068.1,0.1625033]
[1759433809237,0.54576955,1069.9,1068.1,0.1625033]
[1759433809532,0.54591852,1069.8,1068.1,0.1625033]
[1759433809738,0.83537402,1070.8,1068.1,0.1625033]
[1759433809935,0.54591852,1070.7,1068.1,0.1625033]
[1759433810138,0.54591852,1070.6,1068.1,0.1625033]
[1759433810438,0.54591852,1070.5,1068.1,0.1625033]
[1759433810638,0.54591852,1070.4,1068.1,0.1625033]
[1759433810835,0.54591852,1070.3,1066.7,2.07886106]
[1759433811038,0.54591852,1070.2,1066.7,2.07886106]
[1759433811235,0.54591852,1070.1,1066.7,2.07886106]
[1759433811535,0.54591852,1070.0,1066.7,2.07886106]
[1759433811738,0.83537402,1070.7,1067.1,2.07886106]
[1759433811939,1.38111021,1070.6,1067.1,2.07886106]
[1759433812136,2.90313278,1072.0,1067.4,2.91147655]
[1759433812137,0.54573619,1070.5,1067.4,2.91147655]
[1759433812440,0.54573619,1070.4,1067.8,2.07886106]
[1759433812641,0.54573619,1070.3,1067.8,2.07886106]
[1759433812839,0.54573619,1070.2,1068.1,2.07886106]